bitfinex-derivatives/quotes_BTCF0:USTF0_20250913
["timestamp","ask_amount","ask_price","bid_price","bid_amount"]
[1757780977229,0.01355,115590.0,115580.0,2.67996564]
[1757780977422,0.0839505,115600.0,115580.0,2.67996564]
[1757780977621,0.10830711,115600.0,115590.0,0.56449514]
[1757780977827,0.10830711,115600.0,115590.0,1.18449514]
[1757780978026,0.03790661,115600.0,115590.0,1.27095814]
[1757780978232,0.03790661,115600.0,115590.0,1.18449514]
[1757780979232,0.03790661,115600.0,115590.0,1.18649514]
[1757780979433,0.01355,115600.0,115590.0,1.18649514]
[1757780980434,0.01355,115600.0,115590.0,1.18749514]
[1757780980734,0.01355,115610.0,115590.0,1.27395814]
[1757780980936,0.0378993,115610.0,115600.0,1.27224757]
[1757780981134,0.0378993,115610.0,115600.0,1.82994923]
[1757780982237,0.10583198,115610.0,115600.0,1.82994923]
[1757780982641,0.10583198,115610.0,115600.0,1.02034923]
[1757780982835,0.10583198,115610.0,115600.0,1.82990923]
[1757780983340,0.08148268,115610.0,115600.0,1.82978923]
[1757780983538,0.08148268,115610.0,115600.0,1.83834954]
[1757780985139,0.08148268,115610.0,115600.0,1.84034954]
[1757780985841,0.08148268,115610.0,115600.0,1.84134954]
[1757780986246,0.08148268,115610.0,115600.0,1.73950197]
[1757780986540,0.08148268,115610.0,115600.0,1.84134954]
[1757780987836,0.08148268,115610.0,115600.0,1.03190954]
[1757780988037,0.08148268,115610.0,115600.0,1.84098954]
[1757780988242,0.08148268,115610.0,115600.0,1.29530954]
[1757780988445,0.08148268,115610.0,115600.0,1.28674923]
[1757780988936,0.08148268,115610.0,115600.0,2.09574923]
[1757780989941,0.08148268,115610.0,115600.0,2.10422541]
[1757780994543,0.08148268,115610.0,115600.0,2.10382541]
[1757780998447,0.08148268,115610.0,115600.0,2.20558642]
[1757781000043,0.10575388,115610.0,115600.0,2.20558642]
[1757781000348,0.10575388,115610.0,115600.0,2.20522642]
[1757781000545,0.10575388,115610.0,115600.0,1.99310166]
[1757781000752,0.10575388,115610.0,115600.0,2.19671024]
[1757781001851,0.10575388,115610.0,115600.0,1.39698127]
[1757781002050,0.10575388,115610.0,115600.0,2.20506127]
[1757781002248,0.10575388,115610.0,115600.0,1.39698127]
[1757781002440,0.10575388,115610.0,115600.0,2.20506127]
[1757781002645,0.10575388,115610.0,115600.0,1.38851024]
[1757781002844,0.10575388,115610.0,115600.0,2.19659024]
[1757781003152,0.10575388,115610.0,115600.0,1.38851024]
[1757781003352,0.10575388,115610.0,115600.0,2.19651024]
[1757781005745,0.10575388,115610.0,115600.0,1.38851024]
[1757781005957,0.10575388,115610.0,115600.0,2.19639024]
[1757781006148,0.10575388,115610.0,115600.0,1.93299024]
[1757781006951,0.10575388,115610.0,115600.0,1.93291024]
[1757781008048,0.10575388,115610.0,115600.0,1.12511024]
[1757781008255,0.10575388,115610.0,115600.0,1.93287024]
[1757781010555,0.10575388,115610.0,115600.0,2.03467453]
[1757781011357,0.10579736,115610.0,115600.0,2.03467453]
[1757781011550,0.03786468,115610.0,115600.0,2.03467453]
[1757781011756,0.02431468,115610.0,115600.0,2.37113003]
[1757781011952,0.02431468,115610.0,115600.0,2.63453003]
[1757781012451,0.01355,115620.0,115600.0,2.63453003]
[1757781012754,0.01312,115610.0,115600.0,1.37316145]
[1757781012950,0.01312,115610.0,115600.0,2.43959716]
[1757781013659,0.01312,115610.0,115600.0,2.74501003]
[1757781014560,0.01312,115610.0,115600.0,2.74401003]
[1757781015360,0.01312,115610.0,115600.0,2.74501003]
[1757781016558,0.08342666,115620.0,115600.0,2.74501003]
[1757781016764,0.10767091,115620.0,115610.0,0.56440858]
[1757781017062,0.10767091,115620.0,115610.0,1.17440858]
[1757781018765,0.10767091,115620.0,115610.0,1.17540858]
[1757781019066,0.10767091,115620.0,115610.0,1.17740858]
[1757781020466,0.01355,115620.0,115610.0,1.36566087]
[1757781020655,0.01355,115620.0,115610.0,1.26385658]
[1757781020855,0.03778432,115620.0,115610.0,1.26385658]
[1757781021867,0.03778432,115620.0,115610.0,1.98432858]
[1757781022968,0.03778432,115620.0,115610.0,1.17740858]
[1757781023165,0.03778432,115620.0,115610.0,1.98424858]
[1757781024269,0.03778432,115620.0,115610.0,2.08605287]
[1757781024470,0.03778432,115620.0,115610.0,1.98424858]
[1757781025370,0.02423432,115620.0,115610.0,2.17250077]
[1757781025570,0.02423432,115620.0,115610.0,2.42250077]
[1757781025771,0.03752432,115620.0,115610.0,2.42226077]
[1757781027676,0.01285,115630.0,115620.0,0.0864404]
[1757781027883,0.01285,115630.0,115620.0,1.34025183]
[1757781028882,0.04386387,115640.0,115620.0,1.34025183]
[1757781029084,0.04386387,115640.0,115630.0,1.37088858]
[1757781029384,0.04386387,115640.0,115630.0,1.98088858]
[1757781029882,0.11433694,115640.0,115630.0,1.98088858]
[1757781030986,0.08332307,115640.0,115630.0,1.98088858]
[1757781031683,0.08332307,115640.0,115630.0,1.98072858]
[1757781032790,0.08332307,115640.0,115630.0,1.98064858]
[1757781032977,0.08332307,115640.0,115630.0,1.78560992]
[1757781033177,0.08332307,115640.0,115630.0,1.9892185]
[1757781033577,0.01285,115640.0,115630.0,1.9892185]
[1757781034283,0.01285,115640.0,115630.0,1.1829785]
[1757781034486,0.01285,115640.0,115630.0,1.9891385]
[1757781034875,0.01285,115640.0,115630.0,2.09094279]
[1757781035081,0.01285,115640.0,115630.0,2.44077569]
[1757781035876,0.01285,115640.0,115630.0,2.3409714]
[1757781036079,0.01285,115640.0,115630.0,2.2543785]
[1757781036282,0.01285,115640.0,115630.0,1.4483785]
[1757781036481,0.01285,115640.0,115630.0,1.4463785]
[1757781036687,0.01285,115640.0,115630.0,2.2562985]
[1757781037278,0.01285,115640.0,115630.0,1.4503785]
[1757781037580,0.01285,115640.0,115630.0,2.2572585]
[1757781039986,0.01285,115640.0,115630.0,1.4513785]
[1757781040179,0.01285,115640.0,115630.0,2.2571385]
[1757781040788,0.01285,115640.0,115630.0,1.4513785]
[1757781040989,0.03695082,115640.0,115630.0,2.2570585]
[1757781044494,0.01285,115640.0,115630.0,2.2570585]
[1757781045889,0.0369321,115640.0,115630.0,2.2570585]
[1757781046192,0.01285,115640.0,115630.0,2.05344992]
[1757781046399,0.01285,115640.0,115630.0,2.2570585]
[1757781046691,0.03693434,115640.0,115630.0,2.2570585]
[1757781050288,0.03693434,115640.0,115630.0,2.05344992]
[1757781050493,0.03693434,115640.0,115630.0,2.2570585]
[1757781050892,0.03693434,115640.0,115630.0,1.4513785]
[1757781051092,0.03693434,115640.0,115630.0,2.2566185]
[1757781051392,0.03693434,115640.0,115630.0,2.24792858]
[1757781051593,0.03693434,115640.0,115630.0,2.24788858]
[1757781056479,0.03693434,115640.0,115630.0,1.98448858]
[1757781058391,0.03693434,115640.0,115630.0,1.88263275]
[1757781058594,0.03693434,115640.0,115630.0,1.78088]
[1757781058794,0.03693434,115640.0,115630.0,1.88263275]
[1757781061897,0.03693434,115640.0,115630.0,1.88219275]
[1757781062099,0.0369503,115640.0,115630.0,1.88219275]
[1757781078216,0.0369503,115640.0,115630.0,1.96862565]
[1757781078711,0.0369503,115640.0,115630.0,2.0703784]
[1757781079609,0.0241003,115640.0,115630.0,2.0703784]
[1757781080113,0.0372103,115640.0,115630.0,2.0703784]
[1757781080312,0.0372103,115640.0,115630.0,2.3337784]
[1757781082207,0.01312,115650.0,115640.0,0.0864254]
[1757781082412,0.01312,115650.0,115640.0,1.2307309]
[1757781084409,0.01318,115660.0,115640.0,1.2307309]
[1757781084613,0.01318,115660.0,115650.0,1.3677455]
[1757781084807,0.01318,115660.0,115650.0,1.9477455]
[1757781085414,0.01318,115660.0,115650.0,1.1443055]
[1757781085614,0.01318,115660.0,115650.0,1.9477055]
[1757781087318,0.01318,115660.0,115650.0,1.1443055]
[1757781087614,0.01318,115660.0,115650.0,1.74408]
[1757781087819,0.01318,115660.0,115650.0,1.1443055]
[1757781088007,0.01318,115660.0,115650.0,1.9475455]
[1757781091019,0.01318,115660.0,115650.0,1.74404]
[1757781091319,0.01318,115660.0,115650.0,1.9475455]
[1757781091817,0.01318,115660.0,115650.0,0.9408]
[1757781092021,0.01318,115660.0,115650.0,1.84563275]
[1757781092519,0.01318,115660.0,115650.0,1.84559275]
[1757781094123,0.03703918,115660.0,115650.0,1.9473455]
[1757781094618,0.03703918,115660.0,115650.0,1.84559275]
[1757781095119,0.03703918,115660.0,115650.0,1.74384]
[1757781095320,0.03703918,115660.0,115650.0,1.84559275]
[1757781100026,0.03703918,115660.0,115650.0,0.9408]
[1757781100027,0.28703918,115660.0,115650.0,0.9408]
[1757781100228,0.30970918,115660.0,115650.0,1.84523275]
[1757781102824,0.30970918,115660.0,115650.0,1.74348]
[1757781103028,0.30970918,115660.0,115650.0,1.84523275]
[1757781103628,0.30970918,115660.0,115650.0,1.84507275]
[1757781105029,0.30970918,115660.0,115650.0,1.74332]
[1757781105224,0.30970918,115660.0,115650.0,1.84503275]
[1757781105430,0.30970918,115660.0,115650.0,1.84499275]
[1757781106227,0.30970918,115660.0,115650.0,0.9408]
[1757781106429,0.30970918,115660.0,115650.0,1.84499275]
[1757781107328,0.30970918,115660.0,115650.0,1.04255275]
[1757781107629,0.30970918,115660.0,115650.0,1.84495275]
[1757781110231,0.30970918,115660.0,115650.0,0.9408]
[1757781110431,0.30970918,115660.0,115650.0,1.04255275]
[1757781110632,0.30970918,115660.0,115650.0,1.84479275]
[1757781111034,0.34068883,115660.0,115650.0,1.84479275]
[1757781112033,0.34068883,115660.0,115650.0,1.84471275]
[1757781112534,0.38715399,115660.0,115650.0,1.84471275]
[1757781112833,0.34068883,115660.0,115650.0,1.84471275]
[1757781117434,0.34068883,115660.0,115650.0,1.04255275]
[1757781117633,0.34068883,115660.0,115650.0,1.84447275]
[1757781118535,0.38715399,115660.0,115650.0,1.84447275]
[1757781120137,0.38715399,115660.0,115650.0,1.74272]
[1757781120332,0.13715399,115660.0,115650.0,0.3608]
[1757781120530,0.55970374,115660.0,115640.0,0.3608]
[1757781120733,0.16865462,115650.0,115640.0,0.1017647]
[1757781120930,0.16149388,115650.0,115640.0,0.8018]
[1757781121145,0.03587,115640.0,115630.0,1.2643647]
[1757781121443,0.01384,115630.0,115620.0,2.14068326]
[1757781121739,0.03769918,115630.0,115620.0,3.20244326]
[1757781121931,0.05972918,115630.0,115620.0,1.54192326]
[1757781122634,0.05972918,115630.0,115620.0,1.64768796]
[1757781123732,0.05972918,115630.0,115620.0,1.64668796]
[1757781123928,0.068461,115630.0,115620.0,1.64668796]
[1757781124236,0.068461,115630.0,115620.0,1.64868796]
[1757781124436,0.05972918,115630.0,115620.0,1.64868796]
[1757781124744,0.05972918,115630.0,115620.0,1.44515856]
[1757781124933,0.05972918,115630.0,115620.0,1.64668796]
[1757781125134,0.06850519,115630.0,115620.0,1.93768796]
[1757781125428,0.05972918,115630.0,115620.0,1.1183294]
[1757781125631,0.08026562,115630.0,115620.0,1.9199694]
[1757781126440,0.08026562,115630.0,115620.0,1.9189694]
[1757781126642,0.08026562,115630.0,115620.0,1.71544]
[1757781126938,0.08872099,115630.0,115620.0,1.9189694]
[1757781128337,0.08872099,115630.0,115620.0,1.71544]
[1757781128539,0.19048569,115630.0,115620.0,0.6955647]
[1757781128836,0.19048569,115630.0,115620.0,1.4971247]
[1757781129037,0.2609372,115630.0,115620.0,0.6955647]
[1757781129337,0.2609372,115630.0,115620.0,1.4970847]
[1757781129540,0.5109372,115630.0,115620.0,1.03452]
[1757781129839,0.8717372,115630.0,115620.0,0.80452]
[1757781130946,0.8717372,115630.0,115610.0,0.9032447]
[1757781131135,0.1376347,115620.0,115610.0,1.1332447]
[1757781131739,0.1376347,115620.0,115610.0,0.3317647]
[1757781131947,0.16135622,115620.0,115610.0,1.1332047]
[1757781132436,0.16135622,115620.0,115610.0,1.03144]
[1757781132640,0.16135622,115620.0,115610.0,1.1332047]
[1757781132836,0.16135622,115620.0,115610.0,0.23]
[1757781133039,0.87392092,115620.0,115610.0,0.23]
[1757781133436,0.03587,115610.0,115600.0,0.9031647]
[1757781133743,0.52215622,115610.0,115600.0,1.0218447]
[1757781133948,0.52215622,115610.0,115600.0,1.0531647]
[1757781134143,0.05959152,115610.0,115600.0,0.2517647]
[1757781134338,0.16135622,115610.0,115600.0,1.0531647]
[1757781134538,0.16135622,115610.0,115600.0,0.9514]
[1757781134740,0.16135622,115610.0,115600.0,1.0541647]
[1757781134945,0.52215622,115610.0,115600.0,1.0541647]
[1757781136043,0.52215622,115610.0,115600.0,1.0561647]
[1757781137147,0.52215622,115610.0,115600.0,0.2547647]
[1757781137341,0.52215622,115610.0,115600.0,1.0560847]
[1757781137543,0.52215622,115610.0,115600.0,0.2547647]
[1757781138644,0.05959152,115610.0,115600.0,0.2547647]
[1757781138850,0.16135622,115610.0,115600.0,0.2547647]
[1757781140749,0.16135622,115610.0,115600.0,0.2537647]
[1757781140944,0.19237614,115610.0,115600.0,0.2537647]
[1757781141745,0.09061144,115610.0,115600.0,1.1363294]
[1757781141945,0.05959152,115610.0,115600.0,1.1363294]
[1757781142146,0.05959152,115610.0,115600.0,1.1343294]
[1757781142448,0.06059152,115610.0,115600.0,1.1343294]
[1757781143351,0.09161144,115610.0,115600.0,1.1343294]
[1757781145648,0.09161144,115610.0,115600.0,1.4728847]
[1757781146140,0.09161144,115610.0,115600.0,0.6717647]
[1757781146340,0.11435508,115610.0,115600.0,0.6717647]
[1757781146551,0.1380766,115610.0,115600.0,0.6717647]
[1757781146751,0.2398413,115610.0,115600.0,0.6717647]
[1757781147251,0.1380766,115610.0,115600.0,0.7735294]
[1757781147549,0.1380766,115610.0,115600.0,1.1343294]
[1757781149454,0.10705668,115610.0,115600.0,1.1343294]
[1757781149953,0.10705668,115610.0,115600.0,1.9353294]
[1757781150951,0.06947635,115610.0,115600.0,1.9353294]
[1757781151157,0.03856152,115610.0,115600.0,1.9353294]
[1757781154150,0.03856152,115610.0,115600.0,1.1343294]
[1757781154551,0.03856152,115610.0,115600.0,1.9351694]
[1757781157457,0.03856152,115610.0,115600.0,1.73164]
[1757781157756,0.06947635,115610.0,115600.0,1.9351694]
[1757781160960,0.08502668,115610.0,115600.0,1.9351694]
[1757781161760,0.18307664,115610.0,115600.0,1.4731247]
[1757781162552,0.18307664,115610.0,115600.0,0.6725647]
[1757781162755,0.24494402,115610.0,115600.0,1.4730847]
[1757781162958,0.24494402,115610.0,115600.0,1.8730847]
[1757781163153,0.14317932,115610.0,115600.0,1.9748494]
[1757781163357,0.14317932,115610.0,115600.0,1.1743294]
[1757781163659,0.14317932,115610.0,115600.0,1.9748094]
[1757781163865,0.14317932,115610.0,115600.0,1.1743294]
[1757781164066,0.14317932,115610.0,115600.0,1.9748094]
[1757781164265,0.12781726,115610.0,115600.0,1.77128]
[1757781164464,0.12781726,115610.0,115600.0,1.9748094]
[1757781168969,0.12781726,115610.0,115600.0,1.1743294]
[1757781169166,0.12781726,115610.0,115600.0,1.9746094]
[1757781170964,0.11232142,115610.0,115600.0,1.9746094]
[1757781171465,0.18307664,115610.0,115600.0,1.9746094]
[1757781172464,0.21408612,115610.0,115600.0,1.9746094]
[1757781172671,0.11232142,115610.0,115600.0,0.9708]
[1757781172969,0.18307664,115610.0,115600.0,1.9744494]
[1757781174873,0.18307664,115610.0,115600.0,1.1743294]
[1757781175073,0.18307664,115610.0,115600.0,1.9743694]
[1757781175268,0.18307664,115610.0,115600.0,1.77084]
[1757781175473,0.08131194,115610.0,115600.0,1.9743694]
[1757781175770,0.18307664,115610.0,115600.0,1.9743694]
[1757781176774,0.18307664,115610.0,115600.0,1.4343694]
[1757781176973,0.18307664,115610.0,115600.0,1.3326047]
[1757781177174,0.08131194,115610.0,115600.0,1.3326047]
[1757781177376,0.18307664,115610.0,115600.0,1.3326047]
[1757781177769,0.08131194,115610.0,115600.0,1.3326047]
[1757781177971,0.18307664,115610.0,115600.0,1.3326047]
[1757781178776,0.18307664,115610.0,115600.0,0.4308]
[1757781179073,0.18307664,115610.0,115600.0,1.3325247]
[1757781179577,0.08131194,115610.0,115600.0,0.4308]
[1757781179871,0.54387664,115610.0,115600.0,0.07]
[1757781180079,0.82488612,115610.0,115590.0,1.2624047]
[1757781180269,0.1156447,115600.0,115590.0,1.6324047]
[1757781180463,0.03760152,115600.0,115590.0,1.53064]
[1757781181667,0.03760152,115600.0,115590.0,1.63250313]
[1757781182574,0.06066152,115600.0,115590.0,0.83266313]
[1757781182872,0.06066152,115600.0,115590.0,1.63242313]
[1757781183069,0.06066152,115600.0,115590.0,0.83266313]
[1757781183465,0.06066152,115600.0,115590.0,0.7308]
[1757781185772,0.06066152,115600.0,115590.0,0.37]
[1757781188176,0.16252465,115600.0,115590.0,0.37]
[1757781188375,0.77332465,115600.0,115590.0,0.37]
[1757781188879,0.80433413,115600.0,115590.0,0.37]
[1757781189478,0.03694,115590.0,115580.0,0.3608]
[1757781189680,0.18259144,115590.0,115580.0,0.7308]
[1757781190679,0.08072831,115590.0,115580.0,0.7308]
[1757781191282,0.14838919,115590.0,115580.0,0.7308]
[1757781194771,0.15689973,115590.0,115580.0,0.7308]
[1757781195774,0.15689973,115590.0,115580.0,1.53036]
[1757781195974,0.15689973,115590.0,115580.0,1.16956]
[1757781201384,0.25876286,115590.0,115580.0,0.37]
[1757781201785,0.15689973,115590.0,115580.0,0.37]
[1757781203187,0.25976286,115590.0,115580.0,0.37]
[1757781203780,0.62056286,115590.0,115580.0,0.37]
[1757781203980,0.0361,115580.0,115570.0,0.8024]
[1757781204182,0.05982152,115580.0,115570.0,0.99248]
[1757781205387,0.05982152,115580.0,115570.0,0.19]
[1757781205388,0.42062152,115580.0,115570.0,0.19]
[1757781205890,0.52248465,115580.0,115570.0,0.19]
[1757781206687,0.42062152,115580.0,115570.0,0.19]
[1757781207988,0.42062152,115580.0,115570.0,0.99228]
[1757781209490,0.42162152,115580.0,115570.0,0.99228]
[1757781209985,0.42062152,115580.0,115570.0,0.99228]
[1757781210191,0.42162152,115580.0,115570.0,0.99228]
[1757781210690,0.42162152,115580.0,115570.0,1.09414313]
[1757781210894,0.06082152,115580.0,115570.0,1.09414313]
[1757781211203,0.091831,115580.0,115570.0,1.09414313]
[1757781211682,0.09213313,115580.0,115570.0,1.09414313]
[1757781211883,0.09213313,115580.0,115570.0,1.09406313]
[1757781213391,0.19399626,115580.0,115570.0,0.19]
[1757781213592,0.55479626,115580.0,115570.0,0.19]
[1757781213794,0.09213313,115580.0,115570.0,0.19]
[1757781217696,0.09213313,115580.0,115570.0,0.29186313]
[1757781218194,0.09213313,115580.0,115570.0,0.19]
[1757781218495,0.09213313,115580.0,115570.0,0.29186313]
[1757781219296,0.09213313,115580.0,115570.0,0.19]
[1757781219595,0.09213313,115580.0,115570.0,0.29186313]
[1757781220791,0.09213313,115580.0,115570.0,0.65266313]
[1757781220995,0.06112365,115580.0,115570.0,1.01266313]
[1757781221196,0.03893365,115580.0,115570.0,1.01266313]
[1757781223001,0.06112365,115580.0,115570.0,1.01266313]
[1757781223703,0.03893365,115580.0,115570.0,1.01266313]
[1757781226207,0.03893365,115580.0,115570.0,1.81662313]
[1757781229904,0.03893365,115580.0,115570.0,1.01266313]
[1757781230105,0.03893365,115580.0,115570.0,1.81570313]
[1757781231103,0.03893365,115580.0,115570.0,1.01266313]
[1757781231308,0.06012365,115580.0,115570.0,1.71384]
[1757781231510,0.06012365,115580.0,115570.0,1.81570313]
[1757781232203,0.06012365,115580.0,115570.0,1.01266313]
[1757781232400,0.06012365,115580.0,115570.0,1.81562313]
[1757781232796,0.06012365,115580.0,115570.0,1.81542313]
[1757781233008,0.06012365,115580.0,115570.0,1.71356]
[1757781233199,0.06012365,115580.0,115570.0,1.81542313]
[1757781233707,0.06012365,115580.0,115570.0,1.01266313]
[1757781233907,0.06012365,115580.0,115570.0,1.81538313]
[1757781235205,0.77278678,115580.0,115570.0,0.13]
[1757781235406,0.03705,115560.0,115540.0,0.3608]
[1757781235606,0.13891313,115550.0,115540.0,1.55328]
[1757781235807,0.19395945,115550.0,115540.0,1.55328]
[1757781236008,0.19395945,115550.0,115540.0,0.7508]
[1757781236311,0.16293678,115550.0,115540.0,0.39]
[1757781236613,0.19395945,115550.0,115540.0,1.19548]
[1757781236813,0.09209632,115550.0,115540.0,1.19548]
[1757781237107,0.09209632,115550.0,115540.0,1.19348]
[1757781237313,0.06107365,115550.0,115540.0,1.19548]
[1757781237809,0.06107365,115550.0,115540.0,1.19348]
[1757781238012,0.13128333,115550.0,115540.0,1.19348]
[1757781238211,0.06107365,115550.0,115540.0,1.19348]
[1757781239611,0.06107365,115550.0,115540.0,1.19248]
[1757781240409,0.16301937,115550.0,115540.0,1.29442572]
[1757781241009,0.19404204,115550.0,115540.0,1.29442572]
[1757781241318,0.16301937,115550.0,115540.0,1.19248]
[1757781241515,0.16301937,115550.0,115540.0,1.29442572]
[1757781241714,0.16301937,115550.0,115540.0,0.49194572]
[1757781241915,0.06107365,115550.0,115540.0,1.29374572]
[1757781242216,0.16301937,115550.0,115540.0,1.29374572]
[1757781242423,0.23050303,115550.0,115540.0,1.1918]
[1757781242716,0.23050303,115550.0,115540.0,1.29374572]
[1757781243018,0.23050303,115550.0,115540.0,0.39]
[1757781243218,0.23050303,115550.0,115540.0,1.19156]
[1757781243515,0.23050303,115550.0,115540.0,1.29422572]
[1757781244218,0.12855731,115550.0,115540.0,1.29422572]
[1757781244416,0.23050303,115550.0,115540.0,1.19228]
[1757781244614,0.23050303,115550.0,115540.0,1.29422572]
[1757781245916,0.23150303,115550.0,115540.0,1.29422572]
[1757781248318,0.12955731,115550.0,115540.0,1.29422572]
[1757781248518,0.23150303,115550.0,115540.0,1.29422572]
[1757781249821,0.23150303,115550.0,115540.0,1.19228]
[1757781250120,0.23150303,115550.0,115540.0,1.29422572]
[1757781251218,0.23150303,115550.0,115540.0,1.19228]
[1757781251418,0.23150303,115550.0,115540.0,1.29422572]
[1757781252425,0.12955731,115550.0,115540.0,1.29422572]
[1757781252625,0.10625731,115550.0,115540.0,2.00697144]
[1757781253616,0.08223366,115550.0,115540.0,2.00697144]
[1757781258425,0.10659494,115550.0,115540.0,2.00697144]
[1757781258623,0.08223366,115550.0,115540.0,2.00697144]
[1757781259129,0.08223366,115550.0,115540.0,1.80308]
[1757781259427,0.08223366,115550.0,115540.0,2.00697144]
[1757781259818,0.06848366,115550.0,115540.0,2.10891716]
[1757781260223,0.001,115550.0,115540.0,2.10891716]
[1757781260528,0.001,115550.0,115540.0,2.00697144]
[1757781262029,0.001,115550.0,115540.0,2.10891716]
[1757781263334,0.001,115550.0,115540.0,2.10719716]
[1757781263930,0.001,115550.0,115540.0,2.00525144]
[1757781264932,0.01438,115550.0,115540.0,2.00525144]
[1757781265630,0.01438,115550.0,115540.0,1.20469144]
[1757781265826,0.01438,115550.0,115540.0,1.80104]
[1757781266130,0.01438,115550.0,115540.0,2.00493144]
[1757781271933,0.01438,115550.0,115540.0,1.20469144]
[1757781272134,0.01438,115550.0,115540.0,2.00489144]
[1757781273834,0.001,115550.0,115540.0,2.00489144]
[1757781274034,0.001,115550.0,115540.0,2.10683716]
[1757781274332,0.001,115550.0,115540.0,1.85683716]
[1757781274526,0.001,115550.0,115540.0,2.19333756]
[1757781274731,0.03396453,115570.0,115540.0,2.21055663]
[1757781275034,0.0583493,115570.0,115560.0,0.56469144]
[1757781275332,0.0583493,115570.0,115560.0,1.90485144]
[1757781276338,0.0603493,115570.0,115560.0,1.90485144]
[1757781277233,0.0485993,115570.0,115560.0,1.90485144]
[1757781277634,0.02421453,115570.0,115560.0,2.26565144]
[1757781278034,0.02421453,115570.0,115560.0,2.36759716]
[1757781278231,0.02421453,115570.0,115560.0,2.26565144]
[1757781278434,0.03759453,115570.0,115560.0,2.26565144]
[1757781278838,0.03759453,115570.0,115560.0,1.46549144]
[1757781279133,0.03759453,115570.0,115560.0,2.26565144]
[1757781279338,0.13954025,115570.0,115560.0,1.36354572]
[1757781279539,0.13954025,115570.0,115560.0,1.80370572]
[1757781279742,0.41391037,115570.0,115560.0,1.80366572]
[1757781280241,0.41391037,115570.0,115560.0,2.10366572]
[1757781280545,0.41391037,115570.0,115560.0,1.30354572]
[1757781280844,0.41391037,115570.0,115560.0,2.10366572]
[1757781281536,0.31196465,115570.0,115560.0,2.20561144]
[1757781281845,0.06196465,115570.0,115560.0,2.20561144]
[1757781283247,0.06196465,115570.0,115560.0,2.20557144]
[1757781286249,0.06196465,115570.0,115560.0,1.40549144]
[1757781286450,0.06196465,115570.0,115560.0,2.20557144]
[1757781287748,0.06196465,115570.0,115560.0,1.40549144]
[1757781288145,0.06196465,115570.0,115560.0,2.20553144]
[1757781288945,0.06196465,115570.0,115560.0,1.40549144]
[1757781289146,0.06196465,115570.0,115560.0,2.20553144]
[1757781290453,0.06196465,115570.0,115560.0,2.00164]
[1757781290656,0.06196465,115570.0,115560.0,2.20553144]
[1757781293455,0.06196465,115570.0,115560.0,1.40549144]
[1757781293654,0.06196465,115570.0,115560.0,2.20549144]
[1757781298262,0.06196465,115570.0,115560.0,1.40549144]
[1757781298460,0.06196465,115570.0,115560.0,2.20545144]
[1757781299262,0.05996465,115570.0,115560.0,2.20645144]
[1757781299657,0.05796465,115570.0,115560.0,2.20645144]
[1757781300456,0.05796465,115570.0,115560.0,1.2026]
[1757781300657,0.05796465,115570.0,115560.0,2.20641144]
[1757781301458,0.05796465,115570.0,115560.0,1.40649144]
[1757781301664,0.05796465,115570.0,115560.0,2.20641144]
[1757781302459,0.05796465,115570.0,115560.0,2.10440389]
[1757781305266,0.05796465,115570.0,115560.0,1.30448389]
[1757781305458,0.05796465,115570.0,115560.0,2.20628778]
[1757781305657,0.05796465,115570.0,115560.0,1.40636778]
[1757781306059,0.05796465,115570.0,115560.0,2.20624778]
[1757781306359,0.05796465,115570.0,115560.0,2.10436389]
[1757781310070,0.05796465,115570.0,115560.0,1.30448389]
[1757781310369,0.05796465,115570.0,115560.0,2.10432389]
[1757781310970,0.05796465,115570.0,115560.0,1.30448389]
[1757781311160,0.05796465,115570.0,115560.0,2.10428389]
[1757781315275,0.05796465,115570.0,115560.0,2.0024]
[1757781315473,0.05796465,115570.0,115560.0,2.10424389]
[1757781315873,0.05796465,115570.0,115560.0,1.2026]
[1757781316072,0.05796465,115570.0,115560.0,2.10424389]
[1757781316282,0.05796465,115570.0,115560.0,1.30448389]
[1757781316469,0.33072465,115570.0,115560.0,0.481]
[1757781316673,0.33072465,115570.0,115560.0,0.80076]
[1757781318176,0.79340854,115570.0,115560.0,0.001]
[1757781318373,0.82443121,115570.0,115560.0,0.80072]
[1757781318576,0.82443121,115570.0,115560.0,0.001]
[1757781318780,0.82443121,115570.0,115560.0,0.80072]
[1757781319880,0.72254732,115570.0,115560.0,0.80072]
[1757781320479,0.82443121,115570.0,115560.0,0.80072]
[1757781321175,0.08072465,115570.0,115560.0,0.90260389]
[1757781322976,0.08072465,115570.0,115560.0,1.26340389]
[1757781325484,0.08072465,115570.0,115560.0,1.84340389]
[1757781325985,0.08072465,115570.0,115560.0,1.26340389]
[1757781326386,0.08072465,115570.0,115560.0,1.85340389]
[1757781327490,0.05796465,115570.0,115560.0,1.84340389]
[1757781331184,0.08898732,115570.0,115560.0,1.84340389]
[1757781331586,0.11003732,115570.0,115560.0,1.79328389]
[1757781333190,0.08898732,115570.0,115560.0,1.79328389]
[1757781334195,0.06877279,115570.0,115560.0,2.14516778]
[1757781337594,0.02437012,115570.0,115560.0,2.14516778]
[1757781337895,0.02437012,115570.0,115560.0,2.1539314]
[1757781338289,0.02437012,115570.0,115560.0,1.9039314]
[1757781338494,0.02437012,115570.0,115560.0,2.2404215]
[1757781339296,0.02437012,115570.0,115560.0,1.9904215]
[1757781344099,0.01391,115580.0,115560.0,1.9904215]
[1757781344403,0.0382736,115580.0,115570.0,0.46268389]
[1757781344602,0.0382736,115580.0,115570.0,0.97268389]
[1757781347005,0.0382736,115580.0,115570.0,0.97368389]
[1757781347200,0.01391,115580.0,115570.0,0.97368389]
[1757781347500,0.03829788,115580.0,115570.0,0.97368389]
[1757781353707,0.03829788,115580.0,115570.0,1.77284389]
[1757781354900,0.02438788,115580.0,115570.0,2.21121028]
[1757781355107,0.01338,115590.0,115570.0,2.10928639]
[1757781355309,0.01338,115590.0,115580.0,0.46268389]
[1757781355504,0.03777316,115590.0,115580.0,0.97268389]
[1757781356214,0.03777316,115590.0,115580.0,1.77180389]
[1757781357718,0.03777316,115590.0,115580.0,1.77280389]
[1757781359318,0.06031316,115590.0,115580.0,0.8718]
[1757781359517,0.06031316,115590.0,115580.0,1.77272389]
[1757781360218,0.06031316,115590.0,115580.0,0.97368389]
[1757781360417,0.06031316,115590.0,115580.0,1.77268389]
[1757781361919,0.06031316,115590.0,115580.0,0.97368389]
[1757781362118,0.06031316,115590.0,115580.0,1.77264389]
[1757781363624,0.06031316,115590.0,115580.0,0.97368389]
[1757781363819,0.06031316,115590.0,115580.0,1.77260389]
[1757781364517,0.06031316,115590.0,115580.0,1.87442924]
[1757781364716,0.06031316,115590.0,115580.0,1.87438924]
[1757781369117,0.03777316,115590.0,115580.0,1.87438924]
[1757781369415,0.03777316,115590.0,115580.0,1.97624386]
[1757781369617,0.02439316,115590.0,115580.0,1.97624386]
[1757781369814,0.12737847,115600.0,115580.0,1.97624386]
[1757781370016,0.12737847,115600.0,115590.0,0.56450924]